[Event "Titled Tuesday Blitz August 08 Early 2023"]
[White "Materia, Marco"]
[Black "Lazavik, Denis"]
[WhiteFideId "45150451"]
[BlackFideId "13515110"]
[WhiteElo "2738"]
[BlackElo "3040"]
[Result "0-1"]
[Round "3"]
[TimeControl "180+1"]
[Date "2023.08.08"]
[WhiteClock "0:00:51"]
[BlackClock "0:01:26"]
[Board "7"]

1. d4 {[%clk 0:03:00]}  Nf6 {[%clk 0:02:59]} 2. c4 {[%clk 0:03:01]}  e6 {[%clk 0:02:59]} 3. Nf3 {[%clk 0:03:01]}  b6 {[%clk 0:02:59]} 4. g3 {[%clk 0:03:01]}  Ba6 {[%clk 0:02:58]} 5. Qa4 {[%clk 0:03:00]}  Bb7 {[%clk 0:02:54]} 6. Bg2 {[%clk 0:03:00]}  c5 {[%clk 0:02:54]} 7. dxc5 {[%clk 0:02:58]}  bxc5 {[%clk 0:02:54]} 8. O-O {[%clk 0:02:59]}  Be7 {[%clk 0:02:52]} 9. Rd1 {[%clk 0:02:59]}  O-O {[%clk 0:02:51]} 10. Nc3 {[%clk 0:03:00]}  d6 {[%clk 0:02:46]} 11. Bf4 {[%clk 0:02:52]}  Qb6 {[%clk 0:02:46]} 12. Qb5 {[%clk 0:02:47]}  Rd8 {[%clk 0:02:45]} 13. Qxb6 {[%clk 0:02:33]}  axb6 {[%clk 0:02:44]} 14. Nb5 {[%clk 0:02:34]}  Ne8 {[%clk 0:02:42]} 15. a3 {[%clk 0:02:31]}  Nc6 {[%clk 0:02:39]} 16. Rd2 {[%clk 0:02:28]}  Na5 {[%clk 0:02:38]} 17. Rc2 {[%clk 0:02:27]}  Be4 {[%clk 0:02:34]} 18. Rc3 {[%clk 0:02:25]}  Bf6 {[%clk 0:02:31]} 19. Re3 {[%clk 0:02:24]}  Bc6 {[%clk 0:02:26]} 20. Nd2 {[%clk 0:02:20]}  Bxg2 {[%clk 0:02:25]} 21. Kxg2 {[%clk 0:02:21]}  e5 {[%clk 0:02:24]} 22. Rb1 {[%clk 0:02:04]}  exf4 {[%clk 0:02:23]} 23. gxf4 {[%clk 0:02:05]}  Kf8 {[%clk 0:02:23]} 24. b4 {[%clk 0:02:04]}  Nc6 {[%clk 0:02:23]} 25. Rd3 {[%clk 0:02:03]}  Nd4 {[%clk 0:02:18]} 26. Nxd4 {[%clk 0:02:02]}  Bxd4 {[%clk 0:02:19]} 27. e3 {[%clk 0:02:02]}  Bf6 {[%clk 0:02:19]} 28. Ne4 {[%clk 0:02:03]}  Be7 {[%clk 0:02:20]} 29. Rbd1 {[%clk 0:02:02]}  Rdc8 {[%clk 0:02:15]} 30. b5 {[%clk 0:01:53]}  Ra4 {[%clk 0:02:13]} 31. Rc1 {[%clk 0:01:48]}  Rca8 {[%clk 0:02:12]} 32. Kf3 {[%clk 0:01:43]}  Rxa3 {[%clk 0:02:11]} 33. Rd5 {[%clk 0:01:44]}  Nc7 {[%clk 0:02:03]} 34. Rh5 {[%clk 0:01:44]}  h6 {[%clk 0:02:03]} 35. f5 {[%clk 0:01:44]}  Ne8 {[%clk 0:02:01]} 36. Rh3 {[%clk 0:01:39]}  Rd8 {[%clk 0:01:57]} 37. Nc3 {[%clk 0:01:38]}  Nf6 {[%clk 0:01:57]} 38. Rg3 {[%clk 0:01:38]}  d5 {[%clk 0:01:54]} 39. cxd5 {[%clk 0:01:37]}  Nxd5 {[%clk 0:01:54]} 40. Ne4 {[%clk 0:01:38]}  Nf6 {[%clk 0:01:53]} 41. Nc3 {[%clk 0:01:30]}  Bd6 {[%clk 0:01:53]} 42. Rg2 {[%clk 0:01:30]}  Be5 {[%clk 0:01:53]} 43. Ne2 {[%clk 0:01:31]}  Rb3 {[%clk 0:01:52]} 44. Rcg1 {[%clk 0:01:31]}  Nd5 {[%clk 0:01:46]} 45. Rg4 {[%clk 0:01:23]}  Bf6 {[%clk 0:01:45]} 46. Ng3 {[%clk 0:01:23]}  Rb4 {[%clk 0:01:38]} 47. e4 {[%clk 0:01:22]}  Rb3+ {[%clk 0:01:36]} 48. Kg2 {[%clk 0:01:21]}  Nc3 {[%clk 0:01:32]} 49. Nh5 {[%clk 0:01:16]}  Bd4 {[%clk 0:01:31]} 50. Kh1 {[%clk 0:01:13]}  Rb1 {[%clk 0:01:31]} 51. Rxb1 {[%clk 0:01:09]}  Nxb1 {[%clk 0:01:31]} 52. f4 {[%clk 0:01:10]}  c4 {[%clk 0:01:27]} 53. e5 {[%clk 0:01:10]}  c3 {[%clk 0:01:27]} 54. Rg2 {[%clk 0:00:56]}  Be3 {[%clk 0:01:26]} 55. Rxg7 {[%clk 0:00:54]}  Rd1+ {[%clk 0:01:25]} 56. Kg2 {[%clk 0:00:51]}  Rg1+ {[%clk 0:01:26]} 0-1


[Site "https://www.chess.com"]

[Event "Titled Tuesday Blitz August 08 Early 2023"]
[White "Grischuk, Alexander"]
[Black "Fiorito, Joaquin"]
[WhiteFideId "4126025"]
[BlackFideId "180173"]
[WhiteElo "3029"]
[BlackElo "2735"]
[Result "1-0"]
[Round "3"]
[TimeControl "180+1"]
[Date "2023.08.08"]
[WhiteClock "0:01:17"]
[BlackClock "0:00:05"]
[Board "8"]

1. Nf3 {[%clk 0:03:00]}  d5 {[%clk 0:03:00]} 2. g3 {[%clk 0:02:59]}  Nf6 {[%clk 0:03:00]} 3. Bg2 {[%clk 0:03:00]}  c6 {[%clk 0:03:00]} 4. O-O {[%clk 0:02:59]}  Bg4 {[%clk 0:03:00]} 5. h3 {[%clk 0:02:57]}  Bh5 {[%clk 0:02:59]} 6. c4 {[%clk 0:02:55]}  e6 {[%clk 0:02:59]} 7. d4 {[%clk 0:02:55]}  Nbd7 {[%clk 0:02:59]} 8. cxd5 {[%clk 0:02:54]}  exd5 {[%clk 0:02:59]} 9. Ne5 {[%clk 0:02:53]}  Be7 {[%clk 0:02:47]} 10. f4 {[%clk 0:02:33]}  Bg6 {[%clk 0:01:31]} 11. f5 {[%clk 0:02:23]}  Bh5 {[%clk 0:01:23]} 12. Nc3 {[%clk 0:02:15]}  Bd6 {[%clk 0:01:18]} 13. Bf4 {[%clk 0:02:13]}  Qe7 {[%clk 0:01:10]} 14. Nxd7 {[%clk 0:02:04]}  Qxd7 {[%clk 0:01:01]} 15. Qd2 {[%clk 0:01:53]}  O-O-O {[%clk 0:00:35]} 16. Bxd6 {[%clk 0:01:42]}  Qxd6 {[%clk 0:00:35]} 17. Qf4 {[%clk 0:01:41]}  Qxf4 {[%clk 0:00:20]} 18. Rxf4 {[%clk 0:01:42]}  g5 {[%clk 0:00:19]} 19. fxg6 {[%clk 0:01:42]}  Nd7 {[%clk 0:00:19]} 20. gxf7 {[%clk 0:01:39]}  Rhf8 {[%clk 0:00:18]} 21. Raf1 {[%clk 0:01:38]}  Nb6 {[%clk 0:00:18]} 22. e4 {[%clk 0:01:30]}  dxe4 {[%clk 0:00:16]} 23. Bxe4 {[%clk 0:01:31]}  Nc4 {[%clk 0:00:10]} 24. Bxh7 {[%clk 0:01:24]}  Nxb2 {[%clk 0:00:11]} 25. g4 {[%clk 0:01:21]}  Rh8 {[%clk 0:00:05]} 26. f8=Q {[%clk 0:01:17]} 1-0


[Site "https://www.chess.com"]

[Event "Titled Tuesday Blitz August 08 Early 2023"]
[White "Aronian, Levon"]
[Black "Shyam, Sundar M."]
[WhiteFideId "13300474"]
[BlackFideId "5019141"]
[WhiteElo "3019"]
[BlackElo "2723"]
[Result "1-0"]
[Round "3"]
[TimeControl "180+1"]
[Date "2023.08.08"]
[WhiteClock "0:00:50"]
[BlackClock "0:00:19"]
[Board "10"]

1. e4 {[%clk 0:03:00]}  e5 {[%clk 0:02:58]} 2. Nf3 {[%clk 0:03:00]}  Nc6 {[%clk 0:02:59]} 3. Bb5 {[%clk 0:02:59]}  a6 {[%clk 0:02:58]} 4. Ba4 {[%clk 0:02:59]}  Nf6 {[%clk 0:02:57]} 5. d3 {[%clk 0:03:00]}  d6 {[%clk 0:02:56]} 6. c4 {[%clk 0:02:55]}  Be7 {[%clk 0:02:55]} 7. h3 {[%clk 0:02:54]}  h6 {[%clk 0:02:54]} 8. O-O {[%clk 0:02:54]}  Nh7 {[%clk 0:02:54]} 9. d4 {[%clk 0:02:51]}  Bd7 {[%clk 0:02:28]} 10. Nc3 {[%clk 0:02:32]}  Ng5 {[%clk 0:02:27]} 11. Bxg5 {[%clk 0:02:30]}  hxg5 {[%clk 0:02:27]} 12. Bxc6 {[%clk 0:02:30]}  bxc6 {[%clk 0:02:25]} 13. dxe5 {[%clk 0:02:27]}  g4 {[%clk 0:02:26]} 14. hxg4 {[%clk 0:02:26]}  Bxg4 {[%clk 0:02:27]} 15. exd6 {[%clk 0:02:15]}  cxd6 {[%clk 0:02:04]} 16. Qd3 {[%clk 0:02:09]}  Qd7 {[%clk 0:01:50]} 17. Nd4 {[%clk 0:02:04]}  Rb8 {[%clk 0:01:40]} 18. b3 {[%clk 0:02:03]}  g6 {[%clk 0:01:06]} 19. Rae1 {[%clk 0:01:57]}  c5 {[%clk 0:01:03]} 20. Nc2 {[%clk 0:01:47]}  Qe6 {[%clk 0:01:00]} 21. f4 {[%clk 0:01:08]}  g5 {[%clk 0:00:54]} 22. f5 {[%clk 0:00:54]}  Qh6 {[%clk 0:00:53]} 23. Qg3 {[%clk 0:00:52]}  Qh4 {[%clk 0:00:25]} 24. Qxh4 {[%clk 0:00:51]}  gxh4 {[%clk 0:00:26]} 25. e5 {[%clk 0:00:52]}  dxe5 {[%clk 0:00:25]} 26. Rxe5 {[%clk 0:00:51]}  f6 {[%clk 0:00:25]} 27. Re4 {[%clk 0:00:51]}  Rg8 {[%clk 0:00:19]} 28. Nd5 {[%clk 0:00:50]} 1-0


[Site "https://www.chess.com"]

[Event "Titled Tuesday Blitz August 08 Early 2023"]
[White "Makarian, Rudik"]
[Black "Jaracz, Pawel"]
[WhiteFideId "44105681"]
[BlackFideId "1102222"]
[WhiteElo "3019"]
[BlackElo "2721"]
[Result "0-1"]
[Round "3"]
[TimeControl "180+1"]
[Date "2023.08.08"]
[WhiteClock "0:00:01"]
[BlackClock "0:00:10"]
[Board "11"]

1. d4 {[%clk 0:03:00]}  d5 {[%clk 0:02:59]} 2. c4 {[%clk 0:03:00]}  c6 {[%clk 0:03:00]} 3. Nf3 {[%clk 0:03:01]}  Nf6 {[%clk 0:03:00]} 4. Nc3 {[%clk 0:03:01]}  dxc4 {[%clk 0:02:58]} 5. g3 {[%clk 0:02:59]}  b5 {[%clk 0:02:57]} 6. Bg2 {[%clk 0:02:58]}  Bb7 {[%clk 0:02:58]} 7. Ne5 {[%clk 0:02:59]}  a6 {[%clk 0:02:56]} 8. O-O {[%clk 0:02:58]}  e6 {[%clk 0:02:56]} 9. b3 {[%clk 0:02:57]}  b4 {[%clk 0:02:50]} 10. bxc4 {[%clk 0:02:57]}  bxc3 {[%clk 0:02:47]} 11. Rb1 {[%clk 0:02:57]}  Bc8 {[%clk 0:02:38]} 12. c5 {[%clk 0:02:05]}  Bd7 {[%clk 0:02:11]} 13. Rb7 {[%clk 0:01:34]}  Be7 {[%clk 0:02:06]} 14. Nc4 {[%clk 0:01:29]}  Bc8 {[%clk 0:02:02]} 15. Rxe7+ {[%clk 0:01:20]}  Kxe7 {[%clk 0:01:57]} 16. Bf4 {[%clk 0:01:21]}  Nbd7 {[%clk 0:01:51]} 17. Bd6+ {[%clk 0:01:20]}  Ke8 {[%clk 0:01:52]} 18. Bxc6 {[%clk 0:01:17]}  Ra7 {[%clk 0:01:49]} 19. Ba4 {[%clk 0:01:09]}  Nd5 {[%clk 0:01:30]} 20. e4 {[%clk 0:00:55]}  Ne7 {[%clk 0:01:25]} 21. Bxe7 {[%clk 0:00:37]}  Kxe7 {[%clk 0:01:23]} 22. Qc2 {[%clk 0:00:33]}  Nxc5 {[%clk 0:01:18]} 23. dxc5 {[%clk 0:00:31]}  Qd4 {[%clk 0:01:18]} 24. Na5 {[%clk 0:00:21]}  Rc7 {[%clk 0:01:15]} 25. Nc6+ {[%clk 0:00:12]}  Rxc6 {[%clk 0:01:16]} 26. Bxc6 {[%clk 0:00:13]}  Qxc5 {[%clk 0:01:16]} 27. Ba4 {[%clk 0:00:14]}  Rd8 {[%clk 0:01:16]} 28. Rc1 {[%clk 0:00:13]}  Qb4 {[%clk 0:00:43]} 29. Bb3 {[%clk 0:00:12]}  Bb7 {[%clk 0:00:41]} 30. f3 {[%clk 0:00:06]}  Qc5+ {[%clk 0:00:32]} 31. Kh1 {[%clk 0:00:04]}  Rc8 {[%clk 0:00:20]} 32. Kg2 {[%clk 0:00:04]}  g6 {[%clk 0:00:19]} 33. Qd3 {[%clk 0:00:04]}  Qb4 {[%clk 0:00:17]} 34. e5 {[%clk 0:00:02]}  Qc5 {[%clk 0:00:15]} 35. h4 {[%clk 0:00:02]}  h6 {[%clk 0:00:13]} 36. Qe2 {[%clk 0:00:02]}  g5 {[%clk 0:00:13]} 37. hxg5 {[%clk 0:00:02]}  hxg5 {[%clk 0:00:14]} 38. g4 {[%clk 0:00:03]}  Qd4 {[%clk 0:00:14]} 39. Rd1 {[%clk 0:00:03]}  Qxg4+ {[%clk 0:00:14]} 40. Kf2 {[%clk 0:00:03]}  Qh4+ {[%clk 0:00:14]} 41. Kg1 {[%clk 0:00:03]}  Qg3+ {[%clk 0:00:14]} 42. Qg2 {[%clk 0:00:03]}  Qxe5 {[%clk 0:00:14]} 43. Qf2 {[%clk 0:00:02]}  Qf4 {[%clk 0:00:13]} 44. Qb6 {[%clk 0:00:02]}  Qg3+ {[%clk 0:00:13]} 45. Kf1 {[%clk 0:00:03]}  Qxf3+ {[%clk 0:00:14]} 46. Ke1 {[%clk 0:00:04]}  Qe4+ {[%clk 0:00:14]} 47. Kf2 {[%clk 0:00:04]}  Qf3+ {[%clk 0:00:13]} 48. Ke1 {[%clk 0:00:04]}  Qe4+ {[%clk 0:00:11]} 49. Kf2 {[%clk 0:00:05]}  Qf4+ {[%clk 0:00:11]} 50. Ke1 {[%clk 0:00:05]}  Qc7 {[%clk 0:00:12]} 51. Qb4+ {[%clk 0:00:05]}  Kf6 {[%clk 0:00:11]} 52. Qd4+ {[%clk 0:00:05]}  Qe5+ {[%clk 0:00:11]} 53. Qxe5+ {[%clk 0:00:03]}  Kxe5 {[%clk 0:00:12]} 54. Ke2 {[%clk 0:00:04]}  Be4 {[%clk 0:00:12]} 55. Ke3 {[%clk 0:00:04]}  c2 {[%clk 0:00:12]} 56. Rc1 {[%clk 0:00:05]}  f5 {[%clk 0:00:12]} 57. Kd2 {[%clk 0:00:06]}  g4 {[%clk 0:00:12]} 58. Re1 {[%clk 0:00:06]}  g3 {[%clk 0:00:12]} 59. Kc1 {[%clk 0:00:06]}  g2 {[%clk 0:00:11]} 60. Rg1 {[%clk 0:00:06]}  Kf4 {[%clk 0:00:12]} 61. Bxe6 {[%clk 0:00:07]}  Rc7 {[%clk 0:00:11]} 62. Kb2 {[%clk 0:00:01]}  c1=Q+ {[%clk 0:00:10]} 0-1


[Site "https://www.chess.com"]

[Event "Titled Tuesday Blitz August 08 Early 2023"]
[White "Yanchenko, Roman"]
[Black "Tabatabaei, M. Amin"]
[WhiteFideId "4137329"]
[BlackFideId "12521213"]
[WhiteElo "2720"]
[BlackElo "2999"]
[Result "0-1"]
[Round "3"]
[TimeControl "180+1"]
[Date "2023.08.08"]
[WhiteClock "0:00:03"]
[BlackClock "0:00:11"]
[Board "13"]

1. d4 {[%clk 0:03:00]}  e6 {[%clk 0:02:59]} 2. Nf3 {[%clk 0:03:01]}  c5 {[%clk 0:02:59]} 3. c3 {[%clk 0:03:01]}  Nf6 {[%clk 0:02:57]} 4. Bf4 {[%clk 0:03:01]}  Qb6 {[%clk 0:02:52]} 5. Qb3 {[%clk 0:03:01]}  Nc6 {[%clk 0:02:49]} 6. e3 {[%clk 0:03:01]}  Qxb3 {[%clk 0:02:41]} 7. axb3 {[%clk 0:03:01]}  Nh5 {[%clk 0:02:42]} 8. Bc7 {[%clk 0:02:54]}  cxd4 {[%clk 0:02:33]} 9. Nxd4 {[%clk 0:02:42]}  d6 {[%clk 0:02:24]} 10. Bb6 {[%clk 0:02:24]}  Kd7 {[%clk 0:02:09]} 11. b4 {[%clk 0:01:41]}  Nf6 {[%clk 0:02:05]} 12. Nxc6 {[%clk 0:01:26]}  Kxc6 {[%clk 0:02:03]} 13. Bd4 {[%clk 0:01:26]}  b6 {[%clk 0:01:54]} 14. b5+ {[%clk 0:01:18]}  Kc7 {[%clk 0:01:54]} 15. f4 {[%clk 0:01:11]}  Bb7 {[%clk 0:01:52]} 16. Nd2 {[%clk 0:01:10]}  Be7 {[%clk 0:01:49]} 17. Rg1 {[%clk 0:01:04]}  Rhe8 {[%clk 0:01:47]} 18. g4 {[%clk 0:00:59]}  Bf8 {[%clk 0:01:46]} 19. g5 {[%clk 0:00:55]}  Nd7 {[%clk 0:01:43]} 20. e4 {[%clk 0:00:43]}  e5 {[%clk 0:01:43]} 21. fxe5 {[%clk 0:00:44]}  dxe5 {[%clk 0:01:41]} 22. Be3 {[%clk 0:00:42]}  Bc5 {[%clk 0:01:41]} 23. Kf2 {[%clk 0:00:42]}  Rf8 {[%clk 0:01:36]} 24. Bc4 {[%clk 0:00:40]}  f6 {[%clk 0:01:36]} 25. gxf6 {[%clk 0:00:40]}  Rxf6+ {[%clk 0:01:37]} 26. Ke2 {[%clk 0:00:40]}  g6 {[%clk 0:01:36]} 27. Rgf1 {[%clk 0:00:37]}  Bxe3 {[%clk 0:01:25]} 28. Kxe3 {[%clk 0:00:34]}  Rxf1 {[%clk 0:01:25]} 29. Rxf1 {[%clk 0:00:34]}  Rf8 {[%clk 0:01:26]} 30. Ra1 {[%clk 0:00:32]}  Kb8 {[%clk 0:01:25]} 31. Bd5 {[%clk 0:00:32]}  g5 {[%clk 0:01:21]} 32. h3 {[%clk 0:00:22]}  h6 {[%clk 0:01:10]} 33. Nc4 {[%clk 0:00:21]}  Rf4 {[%clk 0:00:58]} 34. Bc6 {[%clk 0:00:13]}  Bxc6 {[%clk 0:00:41]} 35. bxc6 {[%clk 0:00:14]}  Nc5 {[%clk 0:00:42]} 36. Nd2 {[%clk 0:00:14]}  Rh4 {[%clk 0:00:40]} 37. Rf1 {[%clk 0:00:12]}  Rxh3+ {[%clk 0:00:39]} 38. Ke2 {[%clk 0:00:13]}  Kc7 {[%clk 0:00:39]} 39. b4 {[%clk 0:00:10]}  Na4 {[%clk 0:00:40]} 40. b5 {[%clk 0:00:10]}  Nxc3+ {[%clk 0:00:40]} 41. Ke1 {[%clk 0:00:08]}  Nxb5 {[%clk 0:00:41]} 42. Rf6 {[%clk 0:00:08]}  Nd4 {[%clk 0:00:38]} 43. Nc4 {[%clk 0:00:09]}  Nxc6 {[%clk 0:00:34]} 44. Rf7+ {[%clk 0:00:09]}  Kd8 {[%clk 0:00:34]} 45. Nd6 {[%clk 0:00:10]}  Rd3 {[%clk 0:00:30]} 46. Nf5 {[%clk 0:00:06]}  a5 {[%clk 0:00:27]} 47. Rf6 {[%clk 0:00:05]}  Kc7 {[%clk 0:00:27]} 48. Ke2 {[%clk 0:00:03]}  Rd8 {[%clk 0:00:24]} 49. Rxh6 {[%clk 0:00:03]}  a4 {[%clk 0:00:24]} 50. Rh7+ {[%clk 0:00:03]}  Rd7 {[%clk 0:00:24]} 51. Rh3 {[%clk 0:00:03]}  b5 {[%clk 0:00:23]} 52. Ne3 {[%clk 0:00:03]}  Nb4 {[%clk 0:00:22]} 53. Nd1 {[%clk 0:00:01]}  Nc6 {[%clk 0:00:18]} 54. Nc3 {[%clk 0:00:01]}  Nd4+ {[%clk 0:00:18]} 55. Ke1 {[%clk 0:00:02]}  Nc2+ {[%clk 0:00:18]} 56. Ke2 {[%clk 0:00:02]}  b4 {[%clk 0:00:18]} 57. Nd5+ {[%clk 0:00:03]}  Kb7 {[%clk 0:00:19]} 58. Nf6 {[%clk 0:00:01]}  Rd6 {[%clk 0:00:17]} 59. Ng4 {[%clk 0:00:02]}  a3 {[%clk 0:00:17]} 60. Nxe5 {[%clk 0:00:02]}  a2 {[%clk 0:00:17]} 61. Nc4 {[%clk 0:00:02]}  Ra6 {[%clk 0:00:12]} 62. Rh7+ {[%clk 0:00:03]}  Kc8 {[%clk 0:00:12]} 63. Rh8+ {[%clk 0:00:03]}  Kd7 {[%clk 0:00:12]} 64. Rh7+ {[%clk 0:00:04]}  Ke8 {[%clk 0:00:13]} 65. Rh8+ {[%clk 0:00:05]}  Ke7 {[%clk 0:00:13]} 66. Ne5 {[%clk 0:00:05]}  a1=Q {[%clk 0:00:12]} 67. Rh7+ {[%clk 0:00:06]}  Ke6 {[%clk 0:00:11]} 68. Nd3 {[%clk 0:00:06]}  Nd4+ {[%clk 0:00:11]} 69. Ke3 {[%clk 0:00:03]}  Qg1+ {[%clk 0:00:11]} 0-1


[Site "https://www.chess.com"]

[Event "Titled Tuesday Blitz August 08 Early 2023"]
[White "Andreikin, Dmitry"]
[Black "Akobian, Varuzhan"]
[WhiteFideId "4158814"]
[BlackFideId "13300580"]
[WhiteElo "2998"]
[BlackElo "2712"]
[Result "1-0"]
[Round "3"]
[TimeControl "180+1"]
[Date "2023.08.08"]
[WhiteClock "0:00:03"]
[BlackClock "0:00:00"]
[Board "14"]

1. d4 {[%clk 0:03:00]}  e6 {[%clk 0:02:59]} 2. Bf4 {[%clk 0:02:57]}  Nf6 {[%clk 0:02:58]} 3. e3 {[%clk 0:02:57]}  b6 {[%clk 0:02:58]} 4. Nf3 {[%clk 0:02:55]}  Bb7 {[%clk 0:02:58]} 5. h3 {[%clk 0:02:54]}  Be7 {[%clk 0:02:58]} 6. Nbd2 {[%clk 0:02:52]}  O-O {[%clk 0:02:58]} 7. Bd3 {[%clk 0:02:52]}  c5 {[%clk 0:02:58]} 8. c3 {[%clk 0:02:53]}  cxd4 {[%clk 0:02:58]} 9. cxd4 {[%clk 0:02:53]}  d6 {[%clk 0:02:37]} 10. O-O {[%clk 0:02:50]}  Nbd7 {[%clk 0:02:29]} 11. Bh2 {[%clk 0:02:50]}  a6 {[%clk 0:02:27]} 12. Rc1 {[%clk 0:02:48]}  b5 {[%clk 0:02:27]} 13. e4 {[%clk 0:02:39]}  Qb6 {[%clk 0:02:23]} 14. Qe2 {[%clk 0:02:35]}  Rfc8 {[%clk 0:02:21]} 15. a3 {[%clk 0:02:32]}  h6 {[%clk 0:02:19]} 16. Nb3 {[%clk 0:02:17]}  Rxc1 {[%clk 0:02:16]} 17. Rxc1 {[%clk 0:02:17]}  Rc8 {[%clk 0:02:16]} 18. Rxc8+ {[%clk 0:02:17]}  Bxc8 {[%clk 0:02:16]} 19. Qc2 {[%clk 0:02:10]}  Bb7 {[%clk 0:02:15]} 20. Bf4 {[%clk 0:02:05]}  Qc6 {[%clk 0:01:41]} 21. Qe2 {[%clk 0:01:55]}  Bd8 {[%clk 0:01:33]} 22. Nfd2 {[%clk 0:01:49]}  e5 {[%clk 0:01:29]} 23. d5 {[%clk 0:01:35]}  Qc8 {[%clk 0:01:23]} 24. Be3 {[%clk 0:01:35]}  Bb6 {[%clk 0:01:17]} 25. Kh2 {[%clk 0:01:27]}  Qc7 {[%clk 0:01:16]} 26. Qe1 {[%clk 0:01:24]}  Bc8 {[%clk 0:01:13]} 27. Nf1 {[%clk 0:01:23]}  Bxe3 {[%clk 0:01:04]} 28. Nxe3 {[%clk 0:01:19]}  Nc5 {[%clk 0:01:04]} 29. Nxc5 {[%clk 0:01:18]}  dxc5 {[%clk 0:01:02]} 30. b3 {[%clk 0:01:17]}  Ne8 {[%clk 0:01:02]} 31. Qc3 {[%clk 0:01:15]}  f6 {[%clk 0:01:00]} 32. b4 {[%clk 0:01:05]}  c4 {[%clk 0:01:00]} 33. Bc2 {[%clk 0:01:04]}  Nd6 {[%clk 0:01:00]} 34. Nd1 {[%clk 0:01:03]}  Qb6 {[%clk 0:00:59]} 35. Qe3 {[%clk 0:00:38]}  Qd4 {[%clk 0:00:58]} 36. Nc3 {[%clk 0:00:39]}  Kf7 {[%clk 0:00:39]} 37. g4 {[%clk 0:00:33]}  g5 {[%clk 0:00:28]} 38. Qe1 {[%clk 0:00:23]}  Kg6 {[%clk 0:00:26]} 39. Kg3 {[%clk 0:00:19]}  h5 {[%clk 0:00:24]} 40. Bb1 {[%clk 0:00:12]}  Bd7 {[%clk 0:00:15]} 41. Bc2 {[%clk 0:00:11]}  h4+ {[%clk 0:00:10]} 42. Kg2 {[%clk 0:00:10]}  Bc8 {[%clk 0:00:09]} 43. Qe3 {[%clk 0:00:04]}  Bd7 {[%clk 0:00:05]} 44. Qxd4 {[%clk 0:00:03]}  exd4 {[%clk 0:00:05]} 45. e5+ {[%clk 0:00:03]}  Kf7 {[%clk 0:00:04]} 46. exd6 {[%clk 0:00:02]}  dxc3 {[%clk 0:00:04]} 47. Kf3 {[%clk 0:00:03]}  Ke8 {[%clk 0:00:02]} 48. Ke3 {[%clk 0:00:03]}  Kd8 {[%clk 0:00:00]} 49. Kd4 {[%clk 0:00:03]} 1-0


[Site "https://www.chess.com"]

[Event "Titled Tuesday Blitz August 08 Early 2023"]
[White "Morefield, Jason"]
[Black "Matlakov, Maxim"]
[WhiteFideId "30920825"]
[BlackFideId "4168003"]
[WhiteElo "2704"]
[BlackElo "2989"]
[Result "0-1"]
[Round "3"]
[TimeControl "180+1"]
[Date "2023.08.08"]
[WhiteClock "0:00:05"]
[BlackClock "0:00:52"]
[Board "16"]

1. e4 {[%clk 0:03:00]}  e5 {[%clk 0:02:59]} 2. Nf3 {[%clk 0:03:01]}  Nc6 {[%clk 0:03:00]} 3. Bb5 {[%clk 0:03:02]}  a6 {[%clk 0:03:00]} 4. Ba4 {[%clk 0:03:02]}  Nf6 {[%clk 0:03:00]} 5. O-O {[%clk 0:03:03]}  Bc5 {[%clk 0:02:57]} 6. c3 {[%clk 0:02:55]}  b5 {[%clk 0:02:56]} 7. Bb3 {[%clk 0:02:54]}  d6 {[%clk 0:02:56]} 8. a4 {[%clk 0:02:53]}  Bb7 {[%clk 0:02:56]} 9. d4 {[%clk 0:02:51]}  Bb6 {[%clk 0:02:56]} 10. Re1 {[%clk 0:02:26]}  O-O {[%clk 0:02:55]} 11. Bg5 {[%clk 0:02:24]}  h6 {[%clk 0:02:55]} 12. Bh4 {[%clk 0:02:24]}  exd4 {[%clk 0:02:55]} 13. cxd4 {[%clk 0:02:23]}  g5 {[%clk 0:02:55]} 14. Bg3 {[%clk 0:02:14]}  Re8 {[%clk 0:02:51]} 15. axb5 {[%clk 0:02:00]}  axb5 {[%clk 0:02:52]} 16. Rxa8 {[%clk 0:02:00]}  Bxa8 {[%clk 0:02:50]} 17. e5 {[%clk 0:01:48]}  dxe5 {[%clk 0:02:46]} 18. Nxe5 {[%clk 0:01:43]}  Nxe5 {[%clk 0:02:40]} 19. Bxe5 {[%clk 0:01:37]}  Bxd4 {[%clk 0:02:28]} 20. Bxd4 {[%clk 0:01:22]}  Rxe1+ {[%clk 0:02:28]} 21. Qxe1 {[%clk 0:01:23]}  Qxd4 {[%clk 0:02:28]} 22. Nc3 {[%clk 0:01:11]}  Qg4 {[%clk 0:02:01]} 23. f3 {[%clk 0:00:56]}  Qd4+ {[%clk 0:01:58]} 24. Qf2 {[%clk 0:00:49]}  Qe5 {[%clk 0:01:57]} 25. h3 {[%clk 0:00:42]}  b4 {[%clk 0:01:55]} 26. Na4 {[%clk 0:00:41]}  Bd5 {[%clk 0:01:53]} 27. Bxd5 {[%clk 0:00:36]}  Nxd5 {[%clk 0:01:54]} 28. Nc5 {[%clk 0:00:29]}  Nf4 {[%clk 0:01:54]} 29. Ne4 {[%clk 0:00:23]}  Nd3 {[%clk 0:01:37]} 30. Qd2 {[%clk 0:00:23]}  Qd4+ {[%clk 0:01:31]} 31. Kf1 {[%clk 0:00:23]}  Kg7 {[%clk 0:01:26]} 32. Ng3 {[%clk 0:00:20]}  Kg6 {[%clk 0:01:20]} 33. Qc2 {[%clk 0:00:17]}  c5 {[%clk 0:01:13]} 34. b3 {[%clk 0:00:15]}  f5 {[%clk 0:01:07]} 35. Ke2 {[%clk 0:00:05]}  Nf4+ {[%clk 0:01:02]} 36. Kf1 {[%clk 0:00:06]}  Qd3+ {[%clk 0:00:52]} 37. Qxd3 {[%clk 0:00:06]}  Nxd3 {[%clk 0:00:53]} 38. Ne2 {[%clk 0:00:07]}  f4 {[%clk 0:00:51]} 39. g4 {[%clk 0:00:06]}  Kf6 {[%clk 0:00:51]} 40. Ng1 {[%clk 0:00:03]}  Ke5 {[%clk 0:00:50]} 41. Ke2 {[%clk 0:00:04]}  Nc1+ {[%clk 0:00:51]} 42. Kd2 {[%clk 0:00:04]}  Nxb3+ {[%clk 0:00:52]} 43. Kc2 {[%clk 0:00:05]}  Nd4+ {[%clk 0:00:51]} 44. Kd3 {[%clk 0:00:05]}  Kd5 {[%clk 0:00:52]} 0-1


[Site "https://www.chess.com"]